[Event "December 12 Early 2023"]
[Site "https://www.chess.com"]
[Date "2023.12.12"]
[Round "5"]
[White "Luukkonen, Tommi"]
[Black "Yushko, Olga"]
[Result "1-0"]
[Board "198"]
[TimeControl "180+1"]
[WhiteFideId "501808"]
[BlackFideId "14114500"]
[WhiteElo "2318"]
[BlackElo "2114"]
[WhiteTeam "FIN"]
[BlackTeam "UKR"]
[WhiteClock "0:01:43"]
[BlackClock "0:01:39"]

1. e4 {[%clk 0:02:46]}  e6 {[%clk 0:02:54]} 2. d4 {[%clk 0:02:43]}  d5 {[%clk 0:02:55]} 3. Nc3 {[%clk 0:02:41]}  Nf6 {[%clk 0:02:55]} 4. e5 {[%clk 0:02:40]}  Nfd7 {[%clk 0:02:55]} 5. Nce2 {[%clk 0:02:40]}  c5 {[%clk 0:02:56]} 6. c3 {[%clk 0:02:40]}  Nc6 {[%clk 0:02:57]} 7. Nf3 {[%clk 0:02:40]}  Qb6 {[%clk 0:02:57]} 8. a3 {[%clk 0:02:39]}  cxd4 {[%clk 0:02:57]} 9. cxd4 {[%clk 0:02:39]}  Be7 {[%clk 0:02:58]} 10. h4 {[%clk 0:02:38]}  O-O {[%clk 0:02:58]} 11. Nf4 {[%clk 0:02:34]}  Na5 {[%clk 0:02:53]} 12. Rb1 {[%clk 0:02:30]}  f6 {[%clk 0:02:50]} 13. Bd3 {[%clk 0:02:27]}  fxe5 {[%clk 0:02:42]} 14. dxe5 {[%clk 0:02:19]}  Nc5 {[%clk 0:02:33]} 15. Bxh7+ {[%clk 0:02:12]}  Kxh7 {[%clk 0:02:18]} 16. Ng5+ {[%clk 0:02:11]}  Kg8 {[%clk 0:02:11]} 17. Qh5 {[%clk 0:02:06]}  Bxg5 {[%clk 0:02:08]} 18. hxg5 {[%clk 0:02:02]}  Rxf4 {[%clk 0:02:08]} 19. Qh8+ {[%clk 0:01:43]}  Kf7 {[%clk 0:02:07]} 20. g6+ {[%clk 0:01:44]}  Ke7 {[%clk 0:01:39]} 21. Qxg7+ {[%clk 0:01:43]} 1-0

[Event "December 12 Early 2023"]
[Site "https://www.chess.com"]
[Date "2023.12.12"]
[Round "5"]
[White "Olcayoz, Gizem"]
[Black "Zhuk, Valeriy"]
[Result "0-1"]
[Board "201"]
[TimeControl "180+1"]
[WhiteFideId "6301444"]
[BlackFideId "24151254"]
[WhiteElo "2025"]
[BlackElo "2298"]
[WhiteTeam "TUR"]
[BlackTeam "RUS"]
[WhiteClock "0:00:00"]
[BlackClock "0:00:15"]

1. e4 {[%clk 0:02:50]}  e6 {[%clk 0:01:07]} 2. d4 {[%clk 0:02:49]}  d5 {[%clk 0:01:05]} 3. Nc3 {[%clk 0:02:49]}  Bb4 {[%clk 0:01:05]} 4. Ne2 {[%clk 0:02:49]}  Nf6 {[%clk 0:01:03]} 5. e5 {[%clk 0:02:48]}  Ne4 {[%clk 0:01:04]} 6. a3 {[%clk 0:02:45]}  Bxc3+ {[%clk 0:01:04]} 7. Nxc3 {[%clk 0:02:46]}  Nxc3 {[%clk 0:01:04]} 8. bxc3 {[%clk 0:02:46]}  b6 {[%clk 0:01:04]} 9. Bd3 {[%clk 0:02:46]}  Ba6 {[%clk 0:01:03]} 10. Qg4 {[%clk 0:02:41]}  Kf8 {[%clk 0:01:02]} 11. h4 {[%clk 0:02:34]}  c5 {[%clk 0:00:56]} 12. h5 {[%clk 0:02:29]}  h6 {[%clk 0:00:54]} 13. Qf4 {[%clk 0:02:24]}  Bxd3 {[%clk 0:00:54]} 14. cxd3 {[%clk 0:02:24]}  Nc6 {[%clk 0:00:54]} 15. dxc5 {[%clk 0:02:20]}  bxc5 {[%clk 0:00:54]} 16. Rh3 {[%clk 0:02:19]}  Qc7 {[%clk 0:00:53]} 17. Rf3 {[%clk 0:02:17]}  Qxe5+ {[%clk 0:00:51]} 18. Qxe5 {[%clk 0:02:13]}  Nxe5 {[%clk 0:00:52]} 19. Rg3 {[%clk 0:01:59]}  c4 {[%clk 0:00:51]} 20. dxc4 {[%clk 0:01:57]}  Nxc4 {[%clk 0:00:52]} 21. Bf4 {[%clk 0:01:54]}  e5 {[%clk 0:00:49]} 22. Bd2 {[%clk 0:01:48]}  Rb8 {[%clk 0:00:49]} 23. Rd3 {[%clk 0:01:41]}  Rb5 {[%clk 0:00:45]} 24. a4 {[%clk 0:01:35]}  Ra5 {[%clk 0:00:45]} 25. f4 {[%clk 0:01:30]}  e4 {[%clk 0:00:44]} 26. Rd4 {[%clk 0:01:30]}  Ke7 {[%clk 0:00:44]} 27. Ke2 {[%clk 0:01:29]}  Rb8 {[%clk 0:00:44]} 28. Ra2 {[%clk 0:01:17]}  f5 {[%clk 0:00:19]} 29. Kf2 {[%clk 0:00:52]}  Rb2 {[%clk 0:00:19]} 30. Rxb2 {[%clk 0:00:50]}  Nxb2 {[%clk 0:00:20]} 31. Ke2 {[%clk 0:00:45]}  Rxa4 {[%clk 0:00:20]} 32. Rxd5 {[%clk 0:00:44]}  Nc4 {[%clk 0:00:20]} 33. Rxf5 {[%clk 0:00:43]}  Ke6 {[%clk 0:00:17]} 34. Rf8 {[%clk 0:00:41]}  Ra2 {[%clk 0:00:17]} 35. Rd8 {[%clk 0:00:41]}  e3 {[%clk 0:00:18]} 36. Re8+ {[%clk 0:00:38]}  Kd7 {[%clk 0:00:18]} 37. Re4 {[%clk 0:00:33]}  Rxd2+ {[%clk 0:00:17]} 38. Ke1 {[%clk 0:00:32]}  Nb2 {[%clk 0:00:17]} 39. Rxe3 {[%clk 0:00:32]}  Rxg2 {[%clk 0:00:18]} 40. Kf1 {[%clk 0:00:27]}  Rc2 {[%clk 0:00:18]} 41. f5 {[%clk 0:00:24]}  a5 {[%clk 0:00:18]} 42. Rg3 {[%clk 0:00:21]}  a4 {[%clk 0:00:18]} 43. Rxg7+ {[%clk 0:00:21]}  Ke8 {[%clk 0:00:18]} 44. Ra7 {[%clk 0:00:20]}  Rxc3 {[%clk 0:00:18]} 45. f6 {[%clk 0:00:19]}  a3 {[%clk 0:00:19]} 46. Ke2 {[%clk 0:00:16]}  Rc4 {[%clk 0:00:18]} 47. Rxa3 {[%clk 0:00:14]}  Rf4 {[%clk 0:00:17]} 48. Ra6 {[%clk 0:00:13]}  Kf7 {[%clk 0:00:17]} 49. Ke3 {[%clk 0:00:13]}  Rxf6 {[%clk 0:00:17]} 50. Ra7+ {[%clk 0:00:14]}  Ke6 {[%clk 0:00:17]} 51. Ra2 {[%clk 0:00:13]}  Nc4+ {[%clk 0:00:17]} 52. Kd4 {[%clk 0:00:13]}  Nd6 {[%clk 0:00:17]} 53. Re2+ {[%clk 0:00:12]}  Kf7 {[%clk 0:00:17]} 54. Kd5 {[%clk 0:00:12]}  Nf5 {[%clk 0:00:16]} 55. Rf2 {[%clk 0:00:07]}  Ng3 {[%clk 0:00:16]} 56. Rh2 {[%clk 0:00:05]}  Rf5+ {[%clk 0:00:16]} 57. Kd6 {[%clk 0:00:05]}  Rxh5 {[%clk 0:00:17]} 58. Rg2 {[%clk 0:00:04]}  Rg5 {[%clk 0:00:16]} 59. Rf2+ {[%clk 0:00:04]}  Kg6 {[%clk 0:00:16]} 60. Ke6 {[%clk 0:00:02]}  h5 {[%clk 0:00:15]} 61. Rf6+ {[%clk 0:00:02]}  Kh7 {[%clk 0:00:14]} 62. Rf7+ {[%clk 0:00:02]}  Kh6 {[%clk 0:00:14]} 63. Rf6+ {[%clk 0:00:00]}  Rg6 {[%clk 0:00:15]} 0-1

[Event "December 12 Early 2023"]
[Site "https://www.chess.com"]
[Date "2023.12.12"]
[Round "6"]
[White "Vokhidov, Shamsiddin"]
[Black "Tologon tegin, Semetei"]
[Result "0-1"]
[Board "2"]
[TimeControl "180+1"]
[WhiteFideId "14204223"]
[BlackFideId "13800574"]
[WhiteElo "3023"]
[BlackElo "2651"]
[WhiteTeam "UZB"]
[BlackTeam "KGZ"]
[WhiteClock "0:00:13"]
[BlackClock "0:00:10"]

1. e4 {[%clk 0:03:00]}  c5 {[%clk 0:00:59]} 2. Nf3 {[%clk 0:02:59]}  Nc6 {[%clk 0:00:57]} 3. Bb5 {[%clk 0:02:58]}  d6 {[%clk 0:00:57]} 4. O-O {[%clk 0:02:57]}  Bd7 {[%clk 0:00:57]} 5. Re1 {[%clk 0:02:58]}  Nf6 {[%clk 0:00:57]} 6. c3 {[%clk 0:02:58]}  a6 {[%clk 0:00:57]} 7. Bf1 {[%clk 0:02:59]}  Bg4 {[%clk 0:00:57]} 8. h3 {[%clk 0:02:59]}  Bxf3 {[%clk 0:00:57]} 9. Qxf3 {[%clk 0:03:00]}  e6 {[%clk 0:00:57]} 10. Na3 {[%clk 0:02:59]}  Be7 {[%clk 0:00:57]} 11. Nc2 {[%clk 0:02:59]}  O-O {[%clk 0:00:57]} 12. d4 {[%clk 0:03:00]}  cxd4 {[%clk 0:00:57]} 13. Nxd4 {[%clk 0:03:01]}  Rc8 {[%clk 0:00:56]} 14. Be3 {[%clk 0:02:59]}  Ne5 {[%clk 0:00:56]} 15. Qd1 {[%clk 0:02:56]}  Nc4 {[%clk 0:00:55]} 16. Bc1 {[%clk 0:02:52]}  Qb6 {[%clk 0:00:55]} 17. b3 {[%clk 0:02:50]}  Ne5 {[%clk 0:00:55]} 18. c4 {[%clk 0:02:49]}  Nc6 {[%clk 0:00:52]} 19. Bb2 {[%clk 0:02:49]}  Rfd8 {[%clk 0:00:51]} 20. Qd2 {[%clk 0:02:46]}  Nxd4 {[%clk 0:00:51]} 21. Bxd4 {[%clk 0:02:47]}  Qc6 {[%clk 0:00:51]} 22. Bd3 {[%clk 0:02:37]}  Nd7 {[%clk 0:00:50]} 23. Rac1 {[%clk 0:02:32]}  Bf6 {[%clk 0:00:51]} 24. Be3 {[%clk 0:02:32]}  Nc5 {[%clk 0:00:45]} 25. Bb1 {[%clk 0:02:31]}  Rd7 {[%clk 0:00:40]} 26. f3 {[%clk 0:02:27]}  Rdd8 {[%clk 0:00:37]} 27. Red1 {[%clk 0:02:26]}  Be5 {[%clk 0:00:35]} 28. b4 {[%clk 0:02:24]}  Na4 {[%clk 0:00:35]} 29. Rc2 {[%clk 0:02:15]}  b5 {[%clk 0:00:26]} 30. Rdc1 {[%clk 0:02:12]}  bxc4 {[%clk 0:00:25]} 31. a3 {[%clk 0:02:01]}  c3 {[%clk 0:00:24]} 32. Qe2 {[%clk 0:02:01]}  h6 {[%clk 0:00:21]} 33. Ba2 {[%clk 0:01:58]}  Qb7 {[%clk 0:00:18]} 34. Bc4 {[%clk 0:01:53]}  Rc6 {[%clk 0:00:17]} 35. b5 {[%clk 0:01:51]}  Rxc4 {[%clk 0:00:13]} 36. Qxc4 {[%clk 0:01:52]}  axb5 {[%clk 0:00:14]} 37. Qb4 {[%clk 0:01:43]}  d5 {[%clk 0:00:14]} 38. exd5 {[%clk 0:01:40]}  exd5 {[%clk 0:00:15]} 39. Bd4 {[%clk 0:01:39]}  Bxd4+ {[%clk 0:00:15]} 40. Qxd4 {[%clk 0:01:40]}  Rc8 {[%clk 0:00:14]} 41. Re1 {[%clk 0:01:36]}  Qb6 {[%clk 0:00:11]} 42. Rd1 {[%clk 0:01:30]}  Rc4 {[%clk 0:00:09]} 43. Qxb6 {[%clk 0:01:23]}  Nxb6 {[%clk 0:00:10]} 44. Kf2 {[%clk 0:01:22]}  d4 {[%clk 0:00:11]} 45. Re2 {[%clk 0:01:04]}  c2 {[%clk 0:00:09]} 46. Rc1 {[%clk 0:01:03]}  d3 {[%clk 0:00:10]} 47. Re8+ {[%clk 0:00:37]}  Kh7 {[%clk 0:00:09]} 48. Ke3 {[%clk 0:00:13]}  Rc3 {[%clk 0:00:10]} 0-1

[Event "December 12 Early 2023"]
[Site "https://www.chess.com"]
[Date "2023.12.12"]
[Round "6"]
[White "Fedoseev, Vladimir"]
[Black "Shankland, Sam"]
[Result "0-1"]
[Board "4"]
[TimeControl "180+1"]
[WhiteFideId "24130737"]
[BlackFideId "2004887"]
[WhiteElo "3056"]
[BlackElo "2909"]
[WhiteTeam "SLO"]
[BlackTeam "USA"]
[WhiteClock "0:00:01"]
[BlackClock "0:00:21"]

1. e4 {[%clk 0:02:15]}  c5 {[%clk 0:02:59]} 2. Nf3 {[%clk 0:02:14]}  d6 {[%clk 0:02:59]} 3. Bb5+ {[%clk 0:02:14]}  Bd7 {[%clk 0:02:58]} 4. c4 {[%clk 0:02:10]}  Nf6 {[%clk 0:02:57]} 5. Nc3 {[%clk 0:02:09]}  g6 {[%clk 0:02:57]} 6. O-O {[%clk 0:02:07]}  Bg7 {[%clk 0:02:58]} 7. Bxd7+ {[%clk 0:02:05]}  Nbxd7 {[%clk 0:02:57]} 8. d3 {[%clk 0:02:02]}  O-O {[%clk 0:02:57]} 9. h3 {[%clk 0:01:55]}  a6 {[%clk 0:02:56]} 10. a4 {[%clk 0:01:53]}  e6 {[%clk 0:02:39]} 11. Bf4 {[%clk 0:01:50]}  Qc7 {[%clk 0:02:36]} 12. Qd2 {[%clk 0:01:41]}  Ne5 {[%clk 0:02:35]} 13. Nxe5 {[%clk 0:01:29]}  dxe5 {[%clk 0:02:36]} 14. Be3 {[%clk 0:01:27]}  Rfd8 {[%clk 0:02:35]} 15. a5 {[%clk 0:01:25]}  Nh5 {[%clk 0:02:21]} 16. Na4 {[%clk 0:01:15]}  Bf8 {[%clk 0:01:50]} 17. Ra3 {[%clk 0:00:47]}  f5 {[%clk 0:01:43]} 18. f3 {[%clk 0:00:46]}  Nf4 {[%clk 0:01:34]} 19. h4 {[%clk 0:00:32]}  Be7 {[%clk 0:01:27]} 20. Nb6 {[%clk 0:00:22]}  Rab8 {[%clk 0:01:23]} 21. exf5 {[%clk 0:00:15]}  gxf5 {[%clk 0:01:15]} 22. Bxf4 {[%clk 0:00:12]}  exf4 {[%clk 0:01:15]} 23. Re1 {[%clk 0:00:11]}  Kf7 {[%clk 0:01:13]} 24. Qf2 {[%clk 0:00:07]}  Rd4 {[%clk 0:01:09]} 25. Re2 {[%clk 0:00:04]}  Rg8 {[%clk 0:01:06]} 26. Qe1 {[%clk 0:00:04]}  Qd6 {[%clk 0:01:05]} 27. Kh2 {[%clk 0:00:04]}  Bf6 {[%clk 0:01:01]} 28. b4 {[%clk 0:00:03]}  cxb4 {[%clk 0:00:40]} 29. Rb3 {[%clk 0:00:03]}  Rg3 {[%clk 0:00:39]} 30. Qxb4 {[%clk 0:00:03]}  Qxb4 {[%clk 0:00:38]} 31. Rxb4 {[%clk 0:00:03]}  Rxd3 {[%clk 0:00:38]} 32. Nc8 {[%clk 0:00:04]}  Rd7 {[%clk 0:00:37]} 33. Rxb7 {[%clk 0:00:04]}  Rxb7 {[%clk 0:00:37]} 34. Nd6+ {[%clk 0:00:05]}  Ke7 {[%clk 0:00:33]} 35. Nxb7 {[%clk 0:00:06]}  Bd4 {[%clk 0:00:34]} 36. c5 {[%clk 0:00:05]}  Rg8 {[%clk 0:00:33]} 37. c6 {[%clk 0:00:05]}  Rc8 {[%clk 0:00:32]} 38. Rc2 {[%clk 0:00:06]}  e5 {[%clk 0:00:32]} 39. g3 {[%clk 0:00:04]}  fxg3+ {[%clk 0:00:30]} 40. Kxg3 {[%clk 0:00:05]}  Ke6 {[%clk 0:00:30]} 41. h5 {[%clk 0:00:03]}  h6 {[%clk 0:00:30]} 42. Kg2 {[%clk 0:00:03]}  Rc7 {[%clk 0:00:26]} 43. Kf1 {[%clk 0:00:03]}  Kd5 {[%clk 0:00:26]} 44. Nd8 {[%clk 0:00:03]}  e4 {[%clk 0:00:24]} 45. fxe4+ {[%clk 0:00:04]}  fxe4 {[%clk 0:00:25]} 46. Ke2 {[%clk 0:00:03]}  Bf6 {[%clk 0:00:23]} 47. Rd2+ {[%clk 0:00:03]}  Ke5 {[%clk 0:00:23]} 48. Ke3 {[%clk 0:00:02]}  Bg5+ {[%clk 0:00:23]} 49. Ke2 {[%clk 0:00:02]}  Bxd2 {[%clk 0:00:23]} 50. Kxd2 {[%clk 0:00:03]}  Kd6 {[%clk 0:00:20]} 51. Ke3 {[%clk 0:00:03]}  Ke7 {[%clk 0:00:21]} 52. Nb7 {[%clk 0:00:03]}  Rxc6 {[%clk 0:00:21]} 53. Kxe4 {[%clk 0:00:01]}  Rc7 {[%clk 0:00:21]} 0-1

[Event "December 12 Early 2023"]
[Site "https://www.chess.com"]
[Date "2023.12.12"]
[Round "6"]
[White "Nepomniachtchi, Ian"]
[Black "Poormosavi, Seyed Kian"]
[Result "1-0"]
[Board "9"]
[TimeControl "180+1"]
[WhiteFideId "4168119"]
[BlackFideId "12585807"]
[WhiteElo "3104"]
[BlackElo "2717"]
[WhiteTeam "RUS"]
[BlackTeam "IRI"]
[WhiteClock "0:01:22"]
[BlackClock "0:00:01"]

1. e4 {[%clk 0:03:00]}  c6 {[%clk 0:02:59]} 2. d4 {[%clk 0:03:00]}  d5 {[%clk 0:03:00]} 3. Nc3 {[%clk 0:03:01]}  dxe4 {[%clk 0:03:00]} 4. Nxe4 {[%clk 0:03:02]}  Nf6 {[%clk 0:03:00]} 5. Nxf6+ {[%clk 0:03:02]}  exf6 {[%clk 0:03:01]} 6. c3 {[%clk 0:03:03]}  Bf5 {[%clk 0:03:01]} 7. Bd3 {[%clk 0:02:31]}  Bxd3 {[%clk 0:03:00]} 8. Qxd3 {[%clk 0:02:32]}  Bd6 {[%clk 0:03:01]} 9. Ne2 {[%clk 0:02:26]}  O-O {[%clk 0:03:01]} 10. O-O {[%clk 0:02:26]}  Na6 {[%clk 0:03:01]} 11. Bf4 {[%clk 0:02:25]}  Re8 {[%clk 0:02:57]} 12. Bxd6 {[%clk 0:02:18]}  Qxd6 {[%clk 0:02:58]} 13. Rae1 {[%clk 0:02:18]}  Nc5 {[%clk 0:02:53]} 14. Qc2 {[%clk 0:02:17]}  Ne4 {[%clk 0:02:49]} 15. Ng3 {[%clk 0:02:17]}  Nxg3 {[%clk 0:02:47]} 16. hxg3 {[%clk 0:02:18]}  Qd5 {[%clk 0:02:43]} 17. a4 {[%clk 0:02:15]}  f5 {[%clk 0:02:38]} 18. Qd2 {[%clk 0:02:11]}  h6 {[%clk 0:02:33]} 19. Qf4 {[%clk 0:02:10]}  Re4 {[%clk 0:02:23]} 20. Rxe4 {[%clk 0:02:02]}  fxe4 {[%clk 0:02:24]} 21. Re1 {[%clk 0:02:02]}  Re8 {[%clk 0:02:21]} 22. f3 {[%clk 0:01:46]}  e3 {[%clk 0:01:46]} 23. Rxe3 {[%clk 0:01:41]}  Rxe3 {[%clk 0:01:47]} 24. Qxe3 {[%clk 0:01:42]}  Qb3 {[%clk 0:01:47]} 25. Qe2 {[%clk 0:01:37]}  a5 {[%clk 0:01:45]} 26. Kh2 {[%clk 0:01:31]}  g6 {[%clk 0:01:41]} 27. c4 {[%clk 0:01:29]}  Qxa4 {[%clk 0:01:38]} 28. Qe8+ {[%clk 0:01:22]}  Kg7 {[%clk 0:01:37]} 29. d5 {[%clk 0:01:22]}  Qxc4 {[%clk 0:00:09]} 30. Qe5+ {[%clk 0:01:21]}  Kg8 {[%clk 0:00:08]} 31. d6 {[%clk 0:01:21]}  Qd3 {[%clk 0:00:04]} 32. Qe8+ {[%clk 0:01:21]}  Kg7 {[%clk 0:00:04]} 33. d7 {[%clk 0:01:22]}  Qd5 {[%clk 0:00:01]} 34. d8=Q {[%clk 0:01:22]} 1-0

[Event "December 12 Early 2023"]
[Site "https://www.chess.com"]
[Date "2023.12.12"]
[Round "6"]
[White "Miladinovic, Igor"]
[Black "Pranav, V"]
[Result "0-1"]
[Board "11"]
[TimeControl "180+1"]
[WhiteFideId "4203380"]
[BlackFideId "25060783"]
[WhiteElo "2824"]
[BlackElo "3058"]
[WhiteTeam "SRB"]
[BlackTeam "IND"]
[WhiteClock "0:00:00"]
[BlackClock "0:00:06"]

1. d4 {[%clk 0:03:00]}  Nf6 {[%clk 0:02:59]} 2. Bg5 {[%clk 0:03:01]}  Ne4 {[%clk 0:02:57]} 3. h4 {[%clk 0:03:01]}  d5 {[%clk 0:02:53]} 4. Nd2 {[%clk 0:03:01]}  Nxd2 {[%clk 0:02:53]} 5. Qxd2 {[%clk 0:03:01]}  Nc6 {[%clk 0:02:51]} 6. e3 {[%clk 0:02:57]}  h6 {[%clk 0:02:49]} 7. Bf4 {[%clk 0:02:57]}  Bf5 {[%clk 0:02:47]} 8. Bd3 {[%clk 0:02:52]}  Bxd3 {[%clk 0:02:47]} 9. Qxd3 {[%clk 0:02:53]}  e6 {[%clk 0:02:47]} 10. O-O-O {[%clk 0:02:53]}  Qd7 {[%clk 0:02:45]} 11. Nf3 {[%clk 0:02:52]}  f6 {[%clk 0:02:41]} 12. Qg6+ {[%clk 0:02:48]}  Qf7 {[%clk 0:02:40]} 13. Qxf7+ {[%clk 0:02:46]}  Kxf7 {[%clk 0:02:41]} 14. Bxc7 {[%clk 0:02:45]}  Rc8 {[%clk 0:02:39]} 15. Bf4 {[%clk 0:02:38]}  h5 {[%clk 0:02:20]} 16. Kb1 {[%clk 0:02:37]}  b5 {[%clk 0:02:19]} 17. Rhe1 {[%clk 0:02:32]}  Bb4 {[%clk 0:02:12]} 18. c3 {[%clk 0:02:30]}  Be7 {[%clk 0:02:12]} 19. Rc1 {[%clk 0:02:24]}  a5 {[%clk 0:02:11]} 20. e4 {[%clk 0:02:23]}  Rhd8 {[%clk 0:02:07]} 21. exd5 {[%clk 0:02:23]}  exd5 {[%clk 0:02:07]} 22. a3 {[%clk 0:02:08]}  Ra8 {[%clk 0:02:02]} 23. Nd2 {[%clk 0:02:03]}  Bf8 {[%clk 0:01:58]} 24. Nb3 {[%clk 0:02:01]}  Rdc8 {[%clk 0:01:55]} 25. Nc5 {[%clk 0:01:56]}  Bxc5 {[%clk 0:01:26]} 26. dxc5 {[%clk 0:01:57]}  b4 {[%clk 0:01:27]} 27. Rcd1 {[%clk 0:01:42]}  Rd8 {[%clk 0:00:36]} 28. Bd6 {[%clk 0:01:39]}  bxc3 {[%clk 0:00:14]} 29. bxc3 {[%clk 0:01:37]}  Re8 {[%clk 0:00:15]} 30. Kc2 {[%clk 0:01:28]}  Rxe1 {[%clk 0:00:13]} 31. Rxe1 {[%clk 0:01:29]}  a4 {[%clk 0:00:12]} 32. Rd1 {[%clk 0:01:22]}  Ke6 {[%clk 0:00:12]} 33. Rb1 {[%clk 0:01:22]}  Na5 {[%clk 0:00:12]} 34. Re1+ {[%clk 0:00:54]}  Kf5 {[%clk 0:00:11]} 35. Kb2 {[%clk 0:00:34]}  Nc4+ {[%clk 0:00:05]} 36. Ka2 {[%clk 0:00:34]}  Ra7 {[%clk 0:00:05]} 37. Rb1 {[%clk 0:00:30]}  Ra6 {[%clk 0:00:03]} 38. Bf8 {[%clk 0:00:28]}  g5 {[%clk 0:00:03]} 39. hxg5 {[%clk 0:00:24]}  fxg5 {[%clk 0:00:04]} 40. Rd1 {[%clk 0:00:21]}  Ke6 {[%clk 0:00:03]} 41. Re1+ {[%clk 0:00:20]}  Kf7 {[%clk 0:00:03]} 42. Be7 {[%clk 0:00:18]}  g4 {[%clk 0:00:03]} 43. Bh4 {[%clk 0:00:16]}  Rc6 {[%clk 0:00:02]} 44. Re7+ {[%clk 0:00:14]}  Kg6 {[%clk 0:00:02]} 45. Ra7 {[%clk 0:00:14]}  Rxc5 {[%clk 0:00:02]} 46. Rxa4 {[%clk 0:00:14]}  Rb5 {[%clk 0:00:02]} 47. Rb4 {[%clk 0:00:14]}  Ra5 {[%clk 0:00:02]} 48. a4 {[%clk 0:00:14]}  Kf5 {[%clk 0:00:02]} 49. Kb3 {[%clk 0:00:14]}  Ke4 {[%clk 0:00:03]} 50. Rb5 {[%clk 0:00:15]}  Ra8 {[%clk 0:00:03]} 51. Rb7 {[%clk 0:00:15]}  Na5+ {[%clk 0:00:04]} 52. Kb4 {[%clk 0:00:14]}  Nxb7 {[%clk 0:00:04]} 53. Bg3 {[%clk 0:00:14]}  d4 {[%clk 0:00:04]} 54. cxd4 {[%clk 0:00:10]}  Kxd4 {[%clk 0:00:05]} 55. Bc7 {[%clk 0:00:11]}  Kd5 {[%clk 0:00:05]} 56. a5 {[%clk 0:00:10]}  Nc5 {[%clk 0:00:05]} 57. Bb6 {[%clk 0:00:10]}  Na6+ {[%clk 0:00:05]} 58. Kb5 {[%clk 0:00:10]}  h4 {[%clk 0:00:05]} 59. f3 {[%clk 0:00:06]}  gxf3 {[%clk 0:00:05]} 60. gxf3 {[%clk 0:00:07]}  h3 {[%clk 0:00:06]} 61. Bg1 {[%clk 0:00:00]}  Nc5 {[%clk 0:00:06]} 0-1

[Event "December 12 Early 2023"]
[Site "https://www.chess.com"]
[Date "2023.12.12"]
[Round "6"]
[White "Duda, Jan-Krzysztof"]
[Black "Dragnev, Valentin"]
[Result "1-0"]
[Board "12"]
[TimeControl "180+1"]
[WhiteFideId "1170546"]
[BlackFideId "1634852"]
[WhiteElo "3051"]
[BlackElo "2804"]
[WhiteTeam "POL"]
[BlackTeam "AUT"]
[WhiteClock "0:01:09"]
[BlackClock "0:00:12"]

1. Nf3 {[%clk 0:03:00]}  d5 {[%clk 0:02:59]} 2. e3 {[%clk 0:03:01]}  Nf6 {[%clk 0:02:59]} 3. c4 {[%clk 0:03:01]}  e6 {[%clk 0:02:58]} 4. b3 {[%clk 0:03:00]}  b6 {[%clk 0:02:54]} 5. Bb2 {[%clk 0:02:59]}  Bb7 {[%clk 0:02:54]} 6. cxd5 {[%clk 0:02:56]}  exd5 {[%clk 0:02:53]} 7. Nc3 {[%clk 0:02:50]}  a6 {[%clk 0:02:53]} 8. d4 {[%clk 0:02:44]}  Bd6 {[%clk 0:02:54]} 9. g3 {[%clk 0:02:44]}  O-O {[%clk 0:02:54]} 10. Bg2 {[%clk 0:02:44]}  Nbd7 {[%clk 0:02:45]} 11. O-O {[%clk 0:02:45]}  Re8 {[%clk 0:02:46]} 12. Rc1 {[%clk 0:02:45]}  Qe7 {[%clk 0:02:45]} 13. Rc2 {[%clk 0:02:46]}  Ne4 {[%clk 0:02:44]} 14. Nb1 {[%clk 0:02:31]}  a5 {[%clk 0:02:40]} 15. a4 {[%clk 0:02:14]}  Ba6 {[%clk 0:02:19]} 16. Re1 {[%clk 0:02:13]}  Bb4 {[%clk 0:02:18]} 17. Nc3 {[%clk 0:02:14]}  c6 {[%clk 0:02:01]} 18. Nd2 {[%clk 0:02:10]}  Nxd2 {[%clk 0:01:53]} 19. Qxd2 {[%clk 0:02:06]}  Nf6 {[%clk 0:01:54]} 20. Rec1 {[%clk 0:02:00]}  h5 {[%clk 0:01:49]} 21. Qd1 {[%clk 0:02:00]}  Bb7 {[%clk 0:01:48]} 22. Ne2 {[%clk 0:01:54]}  h4 {[%clk 0:01:46]} 23. Nf4 {[%clk 0:01:53]}  hxg3 {[%clk 0:01:45]} 24. hxg3 {[%clk 0:01:54]}  Rad8 {[%clk 0:01:43]} 25. Nd3 {[%clk 0:01:46]}  Bd6 {[%clk 0:01:43]} 26. Ne5 {[%clk 0:01:40]}  Bxe5 {[%clk 0:01:37]} 27. dxe5 {[%clk 0:01:41]}  Nd7 {[%clk 0:01:38]} 28. Rxc6 {[%clk 0:01:34]}  Bxc6 {[%clk 0:01:36]} 29. Rxc6 {[%clk 0:01:35]}  Nxe5 {[%clk 0:01:27]} 30. Rxb6 {[%clk 0:01:34]}  Nd7 {[%clk 0:00:44]} 31. Rb7 {[%clk 0:01:25]}  Rb8 {[%clk 0:00:41]} 32. Qd4 {[%clk 0:01:13]}  f6 {[%clk 0:00:21]} 33. Qxd5+ {[%clk 0:01:12]}  Qf7 {[%clk 0:00:11]} 34. Rxd7 {[%clk 0:01:11]}  Qxd5 {[%clk 0:00:12]} 35. Bxd5+ {[%clk 0:01:09]}  Kh8 {[%clk 0:00:12]} 1-0

[Event "December 12 Early 2023"]
[Site "https://www.chess.com"]
[Date "2023.12.12"]
[Round "6"]
[White "Alexandre, Anne Shopie Elizabeth"]
[Black "Zhigalko, Sergei"]
[Result "0-1"]
[Board "17"]
[TimeControl "180+1"]
[WhiteFideId "11902418"]
[BlackFideId "13502956"]
[WhiteElo "2791"]
[BlackElo "2951"]
[WhiteTeam "HAI"]
[BlackTeam "BLR"]
[WhiteClock "0:01:03"]
[BlackClock "0:00:45"]

1. d4 {[%clk 0:03:00]}  Nf6 {[%clk 0:02:59]} 2. Nf3 {[%clk 0:03:01]}  e6 {[%clk 0:02:59]} 3. c4 {[%clk 0:03:00]}  b6 {[%clk 0:02:58]} 4. a3 {[%clk 0:03:00]}  Ba6 {[%clk 0:02:56]} 5. Qc2 {[%clk 0:02:58]}  Bb7 {[%clk 0:02:56]} 6. Nc3 {[%clk 0:02:55]}  c5 {[%clk 0:02:56]} 7. e4 {[%clk 0:02:54]}  cxd4 {[%clk 0:02:56]} 8. Nxd4 {[%clk 0:02:55]}  Nc6 {[%clk 0:02:55]} 9. Nxc6 {[%clk 0:02:45]}  Bxc6 {[%clk 0:02:55]} 10. Be2 {[%clk 0:02:36]}  Qc7 {[%clk 0:02:47]} 11. Be3 {[%clk 0:02:33]}  Bc5 {[%clk 0:02:45]} 12. Bxc5 {[%clk 0:02:17]}  bxc5 {[%clk 0:02:45]} 13. O-O {[%clk 0:02:18]}  O-O {[%clk 0:02:41]} 14. b4 {[%clk 0:02:10]}  Qe5 {[%clk 0:02:35]} 15. b5 {[%clk 0:01:32]}  Bxe4 {[%clk 0:01:38]} 16. Nxe4 {[%clk 0:01:31]}  Nxe4 {[%clk 0:01:25]} 17. Bf3 {[%clk 0:01:31]}  d5 {[%clk 0:01:08]} 18. Rae1 {[%clk 0:01:15]}  f5 {[%clk 0:01:05]} 19. cxd5 {[%clk 0:01:15]}  exd5 {[%clk 0:01:04]} 20. Qxc5 {[%clk 0:01:14]}  Rfd8 {[%clk 0:00:45]} 21. Rd1 {[%clk 0:01:03]}  Nxc5 {[%clk 0:00:45]} 0-1